Workbook

Sheet Übersicht
A1: Käseart | B1: Kultur | C1: Rezeptur | D1: Link
A2: Weichkäse | B2: Penicillium candidum | C2: Camembert | D2: Camembert
A3: Weichkäse | B3: Bakterium linens/Penicillium candidum | C3: Camembert mit Rotschmiere | D3: Camembert mit Rotschmiere
A4: Weichkäse | B4: Penicillium Roquefortii | C4: Roquefort KUH | D4: Roquefort mit Kuhmilch
A5: Weichkäse | B5: Penicillium Roquefortii | C5: Roquefort SCHAF | D5: Roquefort aus Schafmilch
A6: Weichkäse | B6: Bakterium linens | C6: Schlosskäse | D6: Schlosskäse
A7: Weichkäse | B7: Penicillium candidum | C7: Ziegencamembert | D7: Ziegencamembert
A8: Weichkäse | B8: Bakterium linens | C8: Rote Ziege | D8: Rote Ziege

Sheet Camembert
A1: Reihenfolge | B1: Grundrezeptur | G1: Vorgaben | I1: ! | J1: Aktueller Ansatz | M1: Beschreibung
A2: Prozedurschritt | B2: Zutat | C2: Spezifikation | D2: Menge in Gramm | E2: Menge in ml | F2: Tropfen | G2: Temperatur | H2: Dauer | I2: Ansatz Milch in Liter | J2: Gramm benötigt | K2: ml benötigt | L2: Tropfen | M2: Vorgang
A3: 1 | B3: Milch | C3: Vollmilch/Rohmilch | D3: 1000 | E3: =D3 -> 1000 | I3: 1 | J3: =D3*$I$3 -> 1000 | K3: =ROUND(E3*$I$3,2) -> 1000 | M3: Vorbereitung
A4: 2 | B4: Calciumchlorid in ml | C4: 0.34 | D4: 0.1 | E4: =0.1/C4 -> 0.2941176471 | J4: 0.1 | K4: =ROUND(E4*$I$3,2) -> 0.29 | L4: =ROUND(K4/0.05,0) -> 6 | M4: Vorbereitung
A5: 3 | B5: Camembertkultur | C5: L. camembertii, nach Herstellerangaben aufgelöst | J5: 0 | K5: =E5*$I$3 -> 0 | M5: Vorbereitung
A6: 4 | B6: Vorsäuerung | C6: Saure/Buttermilch, alternativ: Säuerungskultur | D6: =D3*0.03 -> 30 | E6: =D6 -> 30 | J6: 30 | K6: 30 | M6: Vorbereitung
A7: 5 | B7: Wasser | D7: =D3/10 -> 100 | E7: =D7 -> 100 | J7: 100 | K7: 100 | M7: Vorbereitung
A8: 6 | G8: 22-25° | H8: 30 min | K8: 0 | M8: Inkubation
A9: 7 | G9: 30-34° | H9: 15 min | K9: 0 | M9: Wärmen
A10: 8 | B10: Lab flüssig | C10: 1:15000 | D10: 2 | E10: 0.2 | F10: 6 | G10: 34-35° | K10: =E10*$I$3 -> 0.2 | L10: =F10*$I$3 -> 6 | M10: Einlaben
A11: 9 | G11: 34-35° | H11: 45-60 min | M11: Dicklegen
A12: 10 | G12: 34-35° | M12: Schnittprobe
A13: 11 | C13: mit flacher Schöpfkelle, gelocht | G13: 34-35° | M13: Verschöpfen oder Schneiden
A14: 12 | C14: Zylinder mit Deckel | G14: 34-35° | M14: Formen
A15: 13 | G15: 20° | M15: Abtropfen
A16: 14 | G16: 20° | H16: 24h | M16: Wenden
A17: 15 | B17: Salzlösung mit Kultur | C17: 0.2 | G17: 20° | H17: 60-120 min | M17: Salzen
A18: 16 | G18: Kühl | H18: 2 Tage | M18: Trocknen
A19: 17 | G19: Kühl | H19: 2x/Tag | M19: Wenden
A20: 18 | B20: Camembertkultur, nach Angabe, in Sprühflasche | C20: L. camembertii, nach Herstellerangaben aufgelöst | G20: Kühl | M20: 1. Impfen
A21: 19 | G21: Kühl | H21: 1-2h | M21: Trocknen
G22: Kühl | M22: Wenden
A23: 20 | B23: Camembertkultur, nach Angabe, in Sprühflasche | C23: L. camembertii, nach Herstellerangaben aufgelöst | G23: Kühl | M23: 2. Impfen
A24: 21 | G24: Kühl | H24: 1-2h | M24: Trocknen
A25: 22 | C25: in Reifekammer, mit Kultur vorbehandelt | G25: 12-15° bei 95%RH | H25: 3 Wochen+ | M25: Reifen
C27: Zu erwartende Ausbeute | F27: =4.5/35*J3 -> 128.5714286

Sheet Ziegencamembert
A1: Reihenfolge | B1: Grundrezeptur | G1: Vorgaben | I1: ! | J1: Aktueller Ansatz | M1: Beschreibung
A2: Prozedurschritt | B2: Zutat | C2: Spezifikation | D2: Menge in Gramm | E2: Menge in ml | F2: Tropfen | G2: Temperatur | H2: Dauer | I2: Ansatz Milch in Liter | J2: Gramm benötigt | K2: ml benötigt | L2: Tropfen | M2: Vorgang
A3: 1 | B3: Ziegenmilch | C3: Vollmilch/Rohmilch | D3: 1000 | E3: =D3 -> 1000 | I3: 3 | J3: =D3*$I$3 -> 3000 | K3: =ROUND(E3*$I$3,2) -> 3000 | M3: Vorbereitung
A4: 2 | B4: Calciumchlorid in ml | C4: 0.34 | D4: 0.05 | E4: =D4/C4 -> 0.1470588235 | J4: 0.15 | K4: =ROUND(E4*$I$3,2) -> 0.44 | L4: =ROUND(K4/0.05,0) -> 9 | M4: Vorbereitung
A5: 3 | B5: Camembertkultur | C5: L. camembertii, nach Herstellerangaben aufgelöst | J5: 0 | K5: 0 | M5: Vorbereitung
A6: 4 | B6: Vorsäuerung | C6: Saure/Buttermilch, alternativ: Säuerungskultur | D6: =D3*0.03 -> 30 | E6: =D6 -> 30 | G6: 30-33° | J6: 90 | K6: 90 | M6: Vorbereitung
A7: 5 | B7: Wasser | D7: =D3/10 -> 100 | E7: =D7 -> 100 | G7: 30-33° | J7: 300 | K7: 300 | M7: Vorbereitung
A8: 6 | G8: 30-33° | H8: 30 min | K8: 0 | M8: Inkubation
A9: 7 | G9: 30-33° | H9: 15 min | K9: 0 | M9: Wärmen
A10: 8 | B10: Lab flüssig | C10: 1:15000 | D10: 1 | E10: 0.1 | F10: 4 | G10: 34° | K10: =E10*$I$3 -> 0.3 | L10: =F10*$I$3 -> 12 | M10: Einlaben
A11: 9 | G11: 34° | H11: 45-60 min | M11: Dicklegen
A12: 10 | G12: 34° | M12: Schnittprobe
A13: 12 | C13: Verschöpfen | G13: 34° | M13: Verschöpfen; alternativ grob schneiden
A14: 13 | G14: 34° | H14: 40 min | M14: Rühren
A15: 14 | C15: Zylinder | G15: 34° | M15: Formen
A16: 15 | G16: 20° | M16: Abtropfen
A17: 16 | G17: 20° | H17: 24h | M17: Wenden
A18: 17 | B18: Salzlösung mit Kultur | C18: 0.2 | G18: 20° | H18: 60-120 min | M18: Salzen
A19: 18 | G19: Kühl | H19: 2 Tage | M19: Trocknen
A20: 19 | G20: Kühl | H20: 2x/Tag | M20: Wenden
A21: 20 | B21: Camembertkultur, nach Angabe, in Sprühflasche | C21: L. camembertii, nach Herstellerangaben aufgelöst | G21: Kühl | M21: 1. Impfen
A22: 21 | G22: Kühl | H22: 1-2h | M22: Trocknen
A23: 22 | G23: Kühl | M23: Wenden
A24: 23 | B24: Camembertkultur, nach Angabe, in Sprühflasche | C24: L. camembertii, nach Herstellerangaben aufgelöst | G24: Kühl | M24: 2. Impfen
A25: 24 | G25: Kühl | H25: 1-2h | M25: Trocknen
A26: 25 | C26: in Reifekammer, mit Kultur vorbehandelt | G26: 12-15° bei 95%RH | H26: 3 Wochen+ | M26: Reifen
C28: Zu erwartende Ausbeute | F28: =4.5/35*J3 -> 385.7142857

Sheet Camembert mit Rotschmiere
A1: Reihenfolge | B1: Grundrezeptur | G1: Vorgaben | I1: ! | J1: Aktueller Ansatz | M1: Beschreibung
A2: Prozedurschritt | B2: Zutat | C2: Spezifikation | D2: Menge in Gramm | E2: Menge in ml | F2: Tropfen | G2: Temperatur | H2: Dauer | I2: Ansatz Milch in Liter | J2: Gramm benötigt | K2: ml benötigt | L2: Tropfen | M2: Vorgang
A3: 1 | B3: Milch | C3: Vollmilch/Rohmilch | D3: 1000 | E3: =D3 -> 1000 | I3: 1 | J3: =D3*$I$3 -> 1000 | K3: =E3*$I$3 -> 1000 | M3: Vorbereitung
A4: 2 | B4: Calciumchlorid in ml | C4: 0.34 | D4: 0.1 | E4: =0.1/C4 -> 0.2941176471 | J4: =D4*$I$3 -> 0.1 | K4: =ROUND(E4*I3,2) -> 0.29 | L4: =ROUND(K4/0.05,0) -> 6 | M4: Vorbereitung
A5: 3 | B5: Camembertkultur | C5: L. camembertii, nach Herstellerangaben aufgelöst | J5: =D5*$I$3 -> 0 | K5: =E5*$I$3 -> 0 | M5: Vorbereitung
A6: 4 | B6: Vorsäuerung | C6: Saure/Buttermilch, alternativ: Säuerungskultur | D6: =D3*0.03 -> 30 | E6: =D6 -> 30 | J6: =D6*$I$3 -> 30 | K6: 30 | M6: Vorbereitung
A7: 5 | B7: Wasser | D7: =D3/10 -> 100 | E7: =D7 -> 100 | J7: =D7*$I$3 -> 100 | K7: 100 | M7: Vorbereitung
A8: 6 | G8: 20° | H8: 30 min | K8: 0 | M8: Inkubation
A9: 7 | G9: 30-34° | H9: 15 min | K9: 0 | M9: Wärmen
A10: 8 | B10: Lab flüssig | C10: 1:15000 | D10: 2 | E10: 0.2 | F10: 6 | G10: 30-34° | K10: 0.2 | L10: =F10*$I$3 -> 6 | M10: Einlaben
A11: 9 | G11: 34-35° | H11: 45-60 min | M11: Dicklegen
A12: 10 | G12: 34-35° | M12: Schnittprobe
A13: 11 | C13: mit flacher Schöpfkelle, gelocht | G13: 34-35° | M13: Verschöpfen oder Schneiden
A14: 12 | C14: Zylinder mit Deckel | G14: 34-35° | M14: Formen
A15: 13 | G15: 20° | M15: Abtropfen
A16: 14 | G16: 20° | H16: 24h | M16: Wenden
A17: 15 | B17: Salzlösung mit Rotschmierekultur | C17: 0.2 | G17: 20° | H17: 60-120 min | M17: Salzen
A18: 16 | G18: Kühl | H18: 2 Tage | M18: Trocknen
A19: 17 | G19: Kühl | H19: 2x/Tag | M19: Wenden
A20: 18 | B20: Camembertkultur, nach Angabe, in Sprühflasche | C20: L. camembertii, nach Herstellerangaben aufgelöst | G20: Kühl | M20: 1. Impfen
A21: 19 | G21: Kühl | H21: 1-2h | M21: Trocknen
G22: Kühl | M22: Wenden
A23: 20 | B23: Camembertkultur, nach Angabe, in Sprühflasche | C23: L. camembertii, nach Herstellerangaben aufgelöst | G23: Kühl | M23: 2. Impfen
A24: 21 | G24: Kühl | H24: 1-2h | M24: Trocknen
A25: 22 | C25: in Reifekammer, mit Kultur vorbehandelt | G25: 12-15° bei 95%RH | H25: 3 Wochen+ | M25: Reifen
C27: Zu erwartende Ausbeute | F27: =4.5/35*J3 -> 128.5714286

Sheet Roquefort mit Kuhmilch
A1: Reihenfolge | B1: Grundrezeptur | G1: Vorgaben | I1: ! | J1: Aktueller Ansatz | M1: Beschreibung
A2: Prozedurschritt | B2: Zutat | C2: Spezifikation | D2: Menge in Gramm | E2: Menge in ml | F2: Tropfen | G2: Temperatur | H2: Dauer | I2: Ansatz Milch in Liter | J2: Gramm benötigt | K2: ml benötigt | L2: Tropfen | M2: Vorgang
A3: 1 | B3: Milch | C3: Vollmilch/Rohmilch | D3: 1000 | E3: =D3 -> 1000 | I3: 3 | J3: =D3*$I$3 -> 3000 | K3: =E3*$I$3 -> 3000 | M3: Vorbereitung
A4: 2 | B4: Obers | C4: 0.3 | D4: 100 | E4: 100 | J4: =D4*$I$3 -> 300 | K4: =E4*$I$3 -> 300 | M4: Vorbereitung
A5: 3 | B5: Calciumchlorid in ml | C5: 0.34 | D5: 0.1 | E5: =0.1/C5 -> 0.2941176471 | J5: =D5*$I$3 -> 0.3 | K5: =ROUND(E5*$I$3,2) -> 0.88 | L5: =ROUND(K5/0.05,0) -> 18 | M5: Vorbereitung
A6: 4 | B6: Vorsäuerung | C6: Saure/Buttermilch, alternativ: Säuerungskultur | D6: =D3*0.03 -> 30 | E6: =D6 -> 30 | J6: =D6*$I$3 -> 90 | K6: 90 | M6: Vorbereitung
A7: 5 | B7: Wasser | D7: =D3/10 -> 100 | E7: =D7 -> 100 | J7: =D7*$I$3 -> 300 | K7: 300 | M7: Vorbereitung
A8: 6 | G8: 20° | H8: 30 min | K8: 0 | M8: Inkubation
A9: 7 | G9: 30-34° | H9: 15 min | K9: 0 | M9: Wärmen
A10: 8 | B10: Lab flüssig | C10: 1:15000 | D10: 2 | E10: 0.2 | F10: 6 | G10: 34-35° | K10: 0.6 | L10: =F10*$I$3 -> 18 | M10: Einlaben
A11: 9 | G11: 34-35° | H11: 45-60 min | M11: Dicklegen
A12: 10 | G12: 34-35° | M12: Schnittprobe
A13: 11 | C13: Käseharfe oder Palette | G13: 34-35° | M13: Schneiden
A14: 12 | C14: Zylinder mit Deckel | G14: 20° | M14: Verschöpfen
A15: 13 | B15: Roquefort-Kultur | C15: Sporen trocken zwischen die Bruchlagen einstreuen | G15: 20° | M15: Impfen
A16: 14 | G16: 20° | M16: Abtropfen
A17: 15 | G17: 20° | H17: 24h | M17: Wenden
A18: 16 | B18: Salz | C18: fest | G18: 20° | H18: 60-120 min | M18: Salzen, in Salz wenden
A19: 17 | G19: Kühl | H19: 2 Tage | M19: Trocknen
A20: 18 | G20: Kühl | H20: 2x/Tag | M20: Wenden
A21: 19 | B21: Camembertkultur, nach Angabe, in Sprühflasche | C21: L. camembertii, nach Herstellerangaben aufgelöst | G21: Kühl | M21: 2. Impfen
A22: 20 | G22: Kühl | H22: 1-2h | M22: Trocknen
A23: 21 | C23: Sterilisierte Stricknadel 5mm | G23: Kühl | M23: Pikieren
A24: 22 | B24: Salzlösung | C24: 0.2 | G24: Kühl | M24: Weißschimmel abwaschen
A25: 23 | C25: Spachtel | G25: 12-15° bei 95%RH | M25: Abschaben/Wenden, Stichkanäle offenhalten
A26: 24 | C26: in Reifekammer, mit Kultur vorbehandelt | G26: 12-15° bei 95%RH | H26: 4-6 Wochen | M26: Reifen, gelegetlich nachpikieren, abschaben
D28: Zu erwartende Ausbeute | G28: =4.5/35*J3 -> 385.7142857

Sheet Roquefort aus Schafmilch
A1: Reihenfolge | B1: Grundrezeptur | G1: Vorgaben | I1: ! | J1: Aktueller Ansatz | M1: Beschreibung
A2: Prozedurschritt | B2: Zutat | C2: Spezifikation | D2: Menge in Gramm | E2: Menge in ml | F2: Tropfen | G2: Temperatur | H2: Dauer | I2: Ansatz Milch in Liter | J2: Gramm benötigt | K2: ml benötigt | L2: Tropfen | M2: Vorgang
A3: 1 | B3: Milch | C3: Schafmilch 4,5% Fett | D3: 1000 | E3: =D3 -> 1000 | I3: 3 | J3: =D3*$I$3 -> 3000 | K3: =E3*$I$3 -> 3000 | M3: Vorbereitung
A4: 2 | B4: Calciumchlorid in ml | C4: 0.34 | D4: 0.1 | E4: =0.1/C4 -> 0.2941176471 | J4: =D4*$I$3 -> 0.3 | K4: =ROUND(E4*$I$3,2) -> 0.88 | L4: =ROUND(K4/0.05,0) -> 18 | M4: Vorbereitung
A5: 3 | B5: Vorsäuerung | C5: Saure/Buttermilch, alternativ: Säuerungskultur | D5: =D3*0.03 -> 30 | E5: =D5 -> 30 | J5: =D5*$I$3 -> 90 | K5: =E5*$I$3 -> 90 | M5: Vorbereitung
A6: 4 | B6: Wasser | D6: =D3/10 -> 100 | E6: =D6 -> 100 | J6: =D6*$I$3 -> 300 | K6: 300 | M6: Vorbereitung
A7: 5 | G7: 20° | H7: 30 min | K7: 0 | M7: Inkubation
A8: 6 | G8: 30-34° | H8: 15 min | K8: 0 | M8: Wärmen
A9: 7 | B9: Lab flüssig | C9: 1:15000 | D9: 1 | E9: 0.1 | F9: 4 | G9: 34-35° | K9: 0.3 | L9: =F9*$I$3 -> 12 | M9: Einlaben
A10: 8 | G10: 34-35° | H10: 45-60 min | M10: Dicklegen
A11: 9 | G11: 34-35° | M11: Schnittprobe
A12: 10 | C12: Käseharfe oder Palette | G12: 34-35° | M12: Schneiden
A13: 11 | C13: Zylinder mit Deckel | G13: 20° | M13: Verschöpfen
A14: 12 | B14: Roquefort-Kultur | C14: Sporen trocken zwischen die Bruchlagen einstreuen | G14: 20° | M14: Impfen
A15: 13 | G15: 20° | M15: Abtropfen
A16: 14 | G16: 20° | H16: 24h | M16: Wenden
A17: 15 | B17: Salz | C17: fest | G17: 20° | H17: 60-120 min | M17: Salzen, in Salz wenden
A18: 16 | G18: Kühl | H18: 2 Tage | M18: Trocknen
A19: 17 | G19: Kühl | H19: 2x/Tag | M19: Wenden
A20: 18 | B20: Camembertkultur, nach Angabe, in Sprühflasche | C20: L. camembertii, nach Herstellerangaben aufgelöst | G20: Kühl | M20: 2. Impfen
A21: 19 | G21: Kühl | H21: 1-2h | M21: Trocknen
A22: 20 | C22: Sterilisierte Stricknadel 5mm | G22: Kühl | M22: Pikieren
A23: 21 | B23: Salzlösung | C23: 0.2 | G23: Kühl | M23: Weißschimmel abwaschen
A24: 22 | C24: Spachtel | G24: 12-15° bei 95%RH | M24: Abschaben/Wenden, Stichkanäle offenhalten
A25: 23 | C25: in Reifekammer, mit Kultur vorbehandelt | G25: 12-15° bei 95%RH | H25: 4-6 Wochen | M25: Reifen, gelegentlich nachpikieren, abschaben

Sheet Rotschmierekäse, Schlosskäse
A1: Reihenfolge | B1: Grundrezeptur | G1: Vorgaben | I1: ! | J1: Aktueller Ansatz | M1: Beschreibung
A2: Prozedurschritt | B2: Zutat | C2: Spezifikation | D2: Menge in Gramm | E2: Menge in ml | F2: Tropfen | G2: Temperatur | H2: Dauer | I2: Ansatz Milch in Liter | J2: Gramm benötigt | K2: ml bzw. EL benötigt | L2: Tropfen | M2: Vorgang
A3: 1 | B3: Milch | C3: Vollmilch/Rohmilch | D3: 1000 | E3: =D3 -> 1000 | I3: 4 | J3: =D3*$I$3 -> 4000 | K3: =E3*$I$3 -> 4000 | M3: Vorbereitung
A4: 2 | B4: Calciumchlorid in ml, so verwendet | C4: 0.34 | D4: 0.1 | E4: =0.1/C4 -> 0.2941176471 | J4: =D4*$I$3 -> 0.4 | K4: =ROUND(E4*I3,2) -> 1.18 | L4: =ROUND(K4/0.05,0) -> 24 | M4: Vorbereitung
A5: 3 | B5: Vorsäuerung | C5: Saure/Buttermilch 1EL/l, alternativ: Säuerungskultur | D5: 10 | E5: 1 | J5: Achtung: EL | K5: =E5*$I$3 -> 4 | M5: Vorbereitung
A6: 4 | G6: 30° konstant | H6: 3h | K6: =E6*$I$3 -> 0 | M6: Inkubation
A7: 5 | G7: 30-32° | H7: 15 min | K7: 0 | M7: Wärmen
A8: 6 | B8: Lab flüssig | C8: 1:15000 | D8: 2 | E8: 0.2 | F8: 6 | G8: 30-32° | K8: 0.8 | L8: =F8*$I$3 -> 24 | M8: Einlaben
A9: 7 | G9: 30-32° | H9: flott | M9: Dicklegen
A10: 8 | G10: 30-32° | M10: Schnittprobe
A11: 9 | C11: mit flacher Schöpfkelle, gelocht | G11: 30-32° | M11: Schneiden in 1,5cm Würfel
A12: 10 | G12: 30-32° | H12: 1h | M12: Setzenlassen
G13: 33-35° | M13: Unter Rühren erwärmen
A14: 11 | C14: Zylinder mit Deckel | G14: 33-35° | M14: Formen
A15: 12 | G15: kühl, Raumtemperatur | H15: 5h | M15: Abtropfen und Pressen, wenden 3-4x, steigendes Pressgewicht
A16: 13 | B16: Salz | C16: fest | G16: kühl, Raumtemperatur | M16: Aus der Form nehmen und salzen
A17: 14 | C17: in Reifekammer | G17: 12-15° bei 95%RH | H17: 3 -4 Wochen | M17: Reifen
A18: 15 | B18: Schmiere | C18: Salzlösung 5%ig mit Rotschmierekultur | G18: 12-15° bei 95%RH | H18: täglich | M18: Wenden und Schmieren
D20: Zu erwartende Ausbeute | G20: =4.5/35*J3 -> 514.2857143

Sheet Rote Ziege
A1: Reihenfolge | B1: Grundrezeptur | G1: Vorgaben | I1: ! | J1: Aktueller Ansatz | M1: Beschreibung
A2: Prozedurschritt | B2: Zutat | C2: Spezifikation | D2: Menge in Gramm | E2: Menge in ml | F2: Tropfen | G2: Temperatur | H2: Dauer | I2: Ansatz Milch in Liter | J2: Gramm benötigt | K2: ml bzw. EL benötigt | L2: Tropfen | M2: Vorgang
A3: 1 | B3: Milch | C3: Ziege | D3: 1000 | E3: =D3 -> 1000 | I3: 3 | J3: =D3*$I$3 -> 3000 | K3: =E3*$I$3 -> 3000 | M3: Vorbereitung
A4: 2 | B4: Calciumchlorid in ml, so verwendet | C4: 0.34 | D4: 0.1 | E4: =0.1/C4 -> 0.2941176471 | J4: =D4*$I$3 -> 0.3 | K4: =ROUND(E4*I3,2) -> 0.88 | L4: =ROUND(K4/0.05,0) -> 18 | M4: Vorbereitung
A5: 3 | B5: Vorsäuerung | C5: Saure/Buttermilch 1EL/l, alternativ: Säuerungskultur | D5: 10 | E5: 1 | J5: Achtung: EL | K5: =E5*$I$3 -> 3 | M5: Vorbereitung
A6: 4 | G6: 30° konstant | H6: 1h | K6: =E6*$I$3 -> 0 | M6: Inkubation
A7: 5 | G7: 32° | H7: 30 min | K7: 0 | M7: Wärmen
A8: 6 | B8: Lab flüssig | C8: 1:15000 | D8: 2 | E8: 0.2 | F8: 6 | G8: 32° | K8: 0.6 | L8: =F8*$I$3 -> 18 | M8: Einlaben
A9: 7 | G9: 32° | H9: flott | M9: Dicklegen
A10: 8 | G10: 32° | H10: 1h | M10: Schnittprobe
A11: 9 | C11: Harfe | G11: 32° | M11: Schneiden in 1,5cm Würfel
A12: 10 | G12: 32° | H12: 1h | M12: Setzenlassen
G13: 35° | H13: 30 min | M13: Unter Rühren erwärmen
A14: 11 | C14: Zylinder 150mm | G14: 35° | M14: Formen
A15: 12 | G15: kühl, Raumtemperatur | H15: 5h | M15: Abtropfen und Pressen, wenden 3-4x, steigendes Pressgewicht
A16: 13 | B16: Salz | C16: Salzbad 20%ig | G16: kühl, Raumtemperatur | H16: 1h | M16: Aus der Form nehmen und salzen
A17: 14 | C17: in Reifekammer | G17: 12-15° bei 95%RH | H17: 3 -4 Wochen | M17: Reifen
A18: 15 | B18: Schmiere | C18: Salzlösung 5%ig mit Rotschmierekultur (B. linens) | G18: 12-15° bei 95%RH | H18: täglich | M18: Wenden und Schmieren
D20: Zu erwartende Ausbeute | G20: =4.5/35*J3 -> 385.7142857
